Cogmind - Beta 15 @@@ ROGUE MODE // 2025.10.11 @ 06:43:35 Player: Jordan Result: Destroyed by G-34 Mercenary with Small Laser Performance ------------- Evolutions (1) 500 Regions Visited (2) 400 Robots Destroyed (15) 75 Value Destroyed (226) 226 Prototype IDs (4) 80 Alien Tech Used (0) 0 Bonus (0) 0 TOTAL SCORE: 1281 Bonus ------- None Cogmind --------- Core Integrity 0/400 Matter 206/300 Energy 98/100 System Corruption 6% Temperature Cool (7) Movement Treading (160) Location -9/Materials Parts ------- > --- POWER (1) -------- (None) > --- PROPULSION (2) --- Light Treads > --- UTILITY (4) ------ (None) > --- WEAPON (2) ------- Hammer > --- INVENTORY (5) ---- (None) Peak State ------------ > --- POWER ------------ Ion Engine > --- PROPULSION ------- Light Treads Light Treads > --- UTILITY ---------- Medium Armor Plating Medium Armor Plating Medium Armor Plating Medium Armor Plating > --- WEAPON ----------- Beam Cannon Assault Rifle > --- INVENTORY -------- Weapon Shielding Light Armor Plating Light Armor Plating [Rating: 13] Favorites ----------- Power Ion Engine Engine Ion Engine Propulsion Aluminum Leg Treads Light Treads Leg Aluminum Leg Utility Medium Armor Plating Device Heat Sink Processor Machine Analyzer Protection Medium Armor Plating Weapon Assault Rifle Energy Cannon Beam Cannon Ballistic Gun Assault Rifle Impact Weapon Hammer Slashing Weapon Mining Claw Build | -11 -10 -9 ------- Run | Yrd Mat Mat Slots Evolved 2 | . . 2 Power . | . . . Propulsion . | . . . Utility 2 | . . 2 Weapon . | . . . Parts Attached 26 | 5 8 13 Power 1 | 1 . . Engine 1 | 1 . . Core . | . . . Reactor . | . . . Propulsion 5 | 2 2 1 Treads 3 | . 2 1 Leg 2 | 2 . . Wheel . | . . . Hover . | . . . Flight . | . . . Utility 14 | . 5 9 Device 1 | . 1 . Storage . | . . . Processor 1 | . 1 . Hackware . | . . . Protection 12 | . 3 9 Artifact . | . . . Weapon 6 | 2 1 3 Energy Gun . | . . . Energy Cannon 1 | . 1 . Ballistic Gun 2 | 2 . . Ballistic Cannon . | . . . Launcher . | . . . Special Weapon . | . . . Impact Weapon 1 | . . 1 Slashing Weapon 2 | . . 2 Piercing Weapon . | . . . Special Melee Weapon . | . . . Unidentified Prototypes . | . . . Parts Lost 12 | . . 12 Power 1 | . . 1 Propulsion 2 | . . 2 Utility 8 | . . 8 Weapon 1 | . . 1 Highest Loss Streak 12 | . . 12 To Critical Strikes 1 | . . 1 Average Backups 1 | . . 2 Power . | . . . Propulsion . | . . . Utility 1 | . . 2 Weapon . | . . . Tool/Special . | . . . Unused Backups . | . . . Power . | . . . Propulsion . | . . . Utility . | . . . Weapon . | . . . Tool/Special . | . . . Average Slot Usage (%) 86 | . 89 79 Engine 12 | . 14 8 Treads 10 | . 6 17 Leg 14 | . 21 . Device 3 | . 4 . Processor 4 | . 6 . Protection 15 | . 7 33 Energy Cannon 3 | . . 8 Ballistic Gun 19 | . 27 2 Slashing Weapon 1 | . . 5 Peak Build Rating 13 | 5 9 13 Average Rating 7 | 4 7 10 On Entrance 4 | . 5 7 Naked Turns . | . . . Heaviest Build 38 | 8 16 38 Greatest Support 40 | 20 40 40 Greatest Overweight (x) 9 | . 4 9 Average Overweight (x) . | . . . Largest Inventory Capacity 5 | 5 5 5 Average Capacity 5 | 5 5 5 Most Carried 5 | . 5 5 Average Carried 1 | . . 3 Final Capacity 5 | 5 5 5 Final Carried 1 | . 1 . Class Distribution -------------------- 100% | Mutant Dominant Class ---------------- Mutant | -10/Materials Mutant | -9/Materials Resources | -11 -10 -9 ----------- Run | Yrd Mat Mat Matter Collected 464 | 266 154 44 Remotely . | . . . Salvage Created 420 | 79 201 140 Parts 29 | 1 19 9 Haulers Intercepted 1 | . 1 . Recyclers Shooed . | . . . Parts Field Recycled . | . . . Retrieved Matter . | . . . Parts Self-Destructed . | . . . Prevented . | . . . Kills | -11 -10 -9 ------- Run | Yrd Mat Mat Combat Hostiles Destroyed 10 | . 4 6 Guns 4 | . 4 . Cannons 5 | . . 5 Classes Destroyed 9 | 1 6 2 Worker 1 | . 1 . Tunneler 1 | . 1 . Hauler 1 | . 1 . Recycler 1 | 1 . . Mechanic 1 | . 1 . Swarmer 7 | . 3 4 Grunt 1 | . 1 . Brawler 1 | . . 1 Duelist 1 | . . 1 Best Kill Streak 4 | 1 4 4 Combat Bots Only 4 | . 3 4 Max Kills in Single Turn 1 | 1 1 1 Gunslinging . | . . . Exploded . | . . . Melee . | . . . Uniques/NPCs Destroyed . | . . . Combat | -11 -10 -9 -------- Run | Yrd Mat Mat Hostile Shots Fired 268 | . 52 216 Missed 70 | . 18 52 Hits 198 | . 34 164 Melee 20 | . . 20 Projectile 178 | . 34 144 AOE 1 | . . 1 Critical Strikes 5 | . . 5 Damage Taken 2218 | . 308 1910 Core 474 | . 72 402 Absorbed by Shields . | . . . Core Remaining (%) 85 | 100 71 . Volleys Fired 43 | 4 27 12 Largest 2 | 2 2 1 Hottest 60 | 40 40 60 Shots Fired 74 | 8 54 12 Gun 62 | 8 54 . Cannon 12 | . . 12 Launcher . | . . . Special . | . . . Kinetic 62 | 8 54 . Thermal 12 | . . 12 Explosive . | . . . Electromagnetic . | . . . Robot Hit Streak 8 | 7 8 3 Robot Miss Streak 3 | 1 3 3 Penetration Max . | . . . Secondary Targets 1 | . 1 . Max Gunslinging Chain 1 | . 1 . Shots Hit Robots 56 | 7 33 16 Core Hits 24 | 3 15 6 Critical Kills . | . . . Critical Parts Destroyed 1 | . . 1 Critical Strikes 1 | . . 1 Smash 1 | . . 1 Melee Attacks 15 | . . 15 Impact 9 | . . 9 Slashing 6 | . . 6 Piercing . | . . . Sneak Attacks . | . . . Combat Hostiles . | . . . Follow-up Attacks . | . . . Damage Inflicted 745 | 79 341 325 Guns 420 | 79 341 . Cannons 123 | . . 123 Explosions . | . . . Melee 197 | . . 197 Ramming 5 | . . 5 Kinetic 420 | 79 341 . Thermal 123 | . . 123 Explosive . | . . . Electromagnetic . | . . . Impact 139 | . . 139 Slashing 58 | . . 58 Piercing . | . . . Highest Corruption 6 | . . 6 Average Corruption 5 | . . 5 Corruption Purged . | . . . Corruption Blocked . | . . . Effects 3 | . . 3 Matter Fused 2 | . . 2 Heat Flow Errors 1 | . . 1 Overload Shots . | . . . Overflow Damage 34 | . . 34 Projectiles . | . . . Explosions . | . . . Melee 34 | . . 34 Knockbacks . | . . . Impact . | . . . Kinetic . | . . . Secondary . | . . . Self-Inflicted Damage . | . . . Shots . | . . . Rammed 2 | . . 2 Targets Rammed 2 | . . 2 Kicked . | . . . Crushed . | . . . Highest Temperature 313 | . 12 313 Average Temperature 107 | . 7 123 Received Heat Transfer 306 | . 54 252 Effects 2 | . . 2 Energy Bleed 2 | . . 2 Siege Activations . | . . . Martial Activations . | . . . Shielding Activations . | . . . Robots Disrupted . | . . . Combat Hostiles . | . . . Robots Corrupted 1 | . . 1 Combat Hostiles 1 | . . 1 Parts Fried 1 | . . 1 Impact Corruptions 2 | . . 2 Robots Melted . | . . . Combat Hostiles . | . . . Parts Melted . | . . . Heat Transferred 259 | . . 259 Parts Sabotaged . | . . . Parts Stolen . | . . . Parts Stripped . | . . . Power Chain Reactions . | . . . Alert | -11 -10 -9 ------- Run | Yrd Mat Mat Maximum Alert Level . | . . . Low Security (%) 100 | 100 100 100 Level 1 . | . . . Level 2 . | . . . Level 3 . | . . . Level 4 . | . . . Level 5 . | . . . High Security . | . . . Max Security . | . . . Peak Influence 85 | 5 65 85 Initial . | . . . Average 18 | . 17 24 Influence Increases 362 | 5 177 180 Destroy 0b10 Robot/C 200 | . 80 120 Destroy 0b10 Robot/NC 25 | 5 20 . Destroy Leader 52 | . 22 30 Successful Hack 10 | . 10 . Disable Machine 15 | . . 15 Lose Combat Pursuer 60 | . 45 15 Influence Decreases 332 | 5 177 150 Time Decay 227 | 5 157 65 Lost Part 85 | . . 85 Purge Threat 20 | . 20 . Squads Dispatched 1 | . 1 . Investigation . | . . . Extermination . | . . . Reinforcement 1 | . 1 . Assault . | . . . Garrison . | . . . Intercept . | . . . Searches Triggered . | . . . Construction Impeded . | . . . Haulers Reinforced . | . . . Active Scanning Responses . | . . . Cargo Convoy Interrupts . | . . . Stealth | -11 -10 -9 --------- Run | Yrd Mat Mat Distress Signals 4 | . 2 2 Communications Jammed . | . . . Distress Signals . | . . . Times Spotted 24 | . 8 16 Peak Tracking Total 12 | . 4 12 Tactical Retreats 2 | . 1 1 Traps | -11 -10 -9 ------- Run | Yrd Mat Mat Traps Triggered . | . . . Indirectly . | . . . Trap Hack Attempts . | . . . Triggered . | . . . Disarmed . | . . . Reprogrammed . | . . . Reused . | . . . Traps Extracted . | . . . Installed . | . . . Triggered . | . . . Machines | -11 -10 -9 ---------- Run | Yrd Mat Mat Machines Disabled 1 | . . 1 Max in Single Turn 1 | . . 1 Machines Repaired . | . . . Machines Dismantled . | . . . Machines Sabotaged . | . . . Overloaded Fab Kills . | . . . Hacking | -11 -10 -9 --------- Run | Yrd Mat Mat Machines Accessed 3 | . 3 . Terminals 3 | . 3 . Fabricators . | . . . Repair Stations . | . . . Recycling Units . | . . . Scanalyzers . | . . . Garrison Access . | . . . Total Hacks 7 | . 7 . Successful 5 | . 5 . Failed 2 | . 2 . Catastrophic . | . . . Database Lockouts . | . . . Manual . | . . . Terminals 7 | . 7 . Fabricators . | . . . Repair Stations . | . . . Recycling Units . | . . . Scanalyzers . | . . . Garrison Access . | . . . Terminal Hacks 5 | . 5 . Prototype ID Bank 3 | . 3 . Unreport Threat 1 | . 1 . Zone Layout 1 | . 1 . Fabricator Hacks . | . . . Repair Station Hacks . | . . . Recycling Unit Hacks . | . . . Scanalyzer . | . . . Garrison Access Hacks . | . . . Unauthorized Hacks . | . . . Terminals . | . . . Fabricators . | . . . Repair Stations . | . . . Recycling Units . | . . . Scanalyzers . | . . . Garrison Access . | . . . Data Cores Recovered . | . . . Used . | . . . Hacking Detections 3 | . 3 . Full Trace Events . | . . . Feedback Events . | . . . Feedback Blocked . | . . . Robot Schematics Acquired . | . . . Robots Built . | . . . Authchips . | . . . Time . | . . . Total Robot Build Rating . | . . . Part Schematics Acquired . | . . . Parts Built . | . . . Authchips . | . . . Time . | . . . Total Part Build Rating . | . . . Parts Repaired . | . . . Time . | . . . Parts Recycled . | . . . Recycled Matter . | . . . Retrieved Matter . | . . . Retrieved Components . | . . . Parts Scanalyzed . | . . . Part Schematics Acquired . | . . . Parts Damaged . | . . . Bothacking | -11 -10 -9 ------------ Run | Yrd Mat Mat Used RIF Installer . | . . . Robots Hacked . | . . . Non-combat . | . . . Combat . | . . . Robot Hacks Applied . | . . . Relay Couplers Released . | . . . Fabnet Peak Effective % . | . . . Robots Rewired . | . . . Allies Hacked . | . . . Hacks Repelled . | . . . Allies | -11 -10 -9 -------- Run | Yrd Mat Mat Total Allies . | . . . Largest Group . | . . . Highest-Rated Group . | . . . Highest-Rated Ally . | . . . Total Orders . | . . . Ally Attacks . | . . . Total Damage . | . . . Kills . | . . . Allies Corrupted . | . . . Allies Melted . | . . . Intel | -11 -10 -9 ------- Run | Yrd Mat Mat Active Infowar (turns) 244 | . 244 . Machine Analysis 244 | . 244 . Robot Analysis Total . | . . . Derelict Logs Recovered . | . . . Drone Launches . | . . . Drone Recoveries . | . . . Exploration | -11 -10 -9 ------------- Run | Yrd Mat Mat Turns Passed 880 | 61 560 259 Spaces Moved 465 | 39 331 95 Core 11 | 6 3 2 Treads 171 | . 78 93 Legs 283 | 33 250 . Wheels . | . . . Hover . | . . . Flight . | . . . Fastest Speed 50 | 50 120 50 Average Speed 135 | 109 130 164 Slowest Speed 500 | 120 250 500 Overloaded Moves . | . . . Propulsion Burnouts . | . . . Robots Hopped . | . . . Potential Cave-ins . | . . . Cave-ins Triggered . | . . . Exploration Rate (%) 19 | 5 41 12 Regions Visited 2 Branch Regions . Pre-discovered Areas . | . . . Known Exits Taken . | . . . Unknown Exits Taken 2 | 1 1 . Scrap Searched . | . . . Spaces Dug . | . . . Terrain Destroyed . | . . . Melee . | . . . Projectile . | . . . AOE . | . . . Terrain Rammed . | . . . Walls Destroyed . | . . . Machines Disabled . | . . . Actions | -11 -10 -9 --------- Run | Yrd Mat Mat Total 614 | 47 411 156 Wait 38 | . 36 2 Move 463 | 38 330 95 Hop . | . . . Pick Up 4 | . . 4 Fast Attach 24 | 5 8 11 Attach 5 | . . 5 Detach 10 | . 6 4 Swap . | . . . Drop 10 | . 4 6 Fire 43 | 4 27 12 Melee 15 | . . 15 Ram . | . . . Kick . | . . . Crush 2 | . . 2 Escape Stasis . | . . . Rewire . | . . . Trap . | . . . Miscellaneous . | . . . Route ------- -11/Scrapyard -10/Materials -9/Materials History --------- Turn | Location | Event 4 | -11/Scrapyard | Discovered new exit (range 16) 62 | -11/Scrapyard | Entered Materials 309 | -10/Materials | Build established: Mutant 505 | -10/Materials | Discovered new exit (range 5) 622 | -10/Materials | Entered another Materials area 622 | -9/Materials | Evolved 2 slots: Utility x2 857 | -9/Materials | Core integrity fell below 50% 868 | -9/Materials | Core integrity fell below 20% 881 | -9/Materials | Destroyed by G-34 Mercenary with Small Laser Last Messages --------------- 00866_ K-01 Serf collects debris. 00866_ U-05 Engineer lays Concrete. 00867_ Lgt. Treads destroyed. 00868_ U-05 Engineer lays Concrete. 00868_ K-01 Serf collects debris. 00869_ U-05 Engineer lays Concrete. 00870_ K-01 Serf collects debris. 00870_ U-05 Engineer lays Concrete. 00871_ R-06 Scavenger collects Flight Unit. 00872_ U-05 Engineer lays Concrete. 00873_ K-01 Serf collects debris. 00873_ U-05 Engineer lays Concrete. 00875_ K-01 Serf collects debris. 00878_ System corrupted: Matter fused (-7). 00878_ L-31 Rogue suffers critical hit (Smash). 00878_ Destroyed Imp. Ion Engine. 00878_ Destroyed Core Shielding. 00878_ L-31 Rogue system corrupted by crushing effect. 00879_ L-31 Rogue system terminally corrupted. 00879_ Imp. Aluminum Leg fried. Map ----- +----------------------------------------------------+ | | | | | | | | | | | | | | | | | | | | | | | | | | | ?????????????????????????????????????????????????? | | ?????????????????????????????????????????????????? | | ?????????????????????????????????????????????????? | | ?????????????????????????????????????????????????? | | ??????????????? ????????????????????????????????? | | ??????????????? ????????????????????????????????? | | ??????????????? ????????????????????????????????? | | ??????????????? ????????????????????????????????? | | ?????????????###+###############?????????????????? | | ??????+####### # //! #?????????????????? | | ?????? # """ ! #?????????????????? | | ?????? # """ / ! #???######????????? | | ??????# # """ @ #???# #????????? | | ??????# # %[ #???# #????????? | | ??????# ######s########### #????????? | | ??????# g #????????? | | ??????# #????????? | | ??????????##### [ #????????? | | ??????????????# !! #????????? | | ??????????????# #????????? | | ??????????????# %[ ] ????? | | ??????????????# ! =% ????? | | ??????????????# !!= =%% %[ | ????? | | ??????????????# !! r * %* ???? | | ??????????????# !! ################### ??? | | ??????????????# =#?????????????????? ??? | | ??????????????# ?????????????????? ??? | | ??????????????# ????????????????????? | | ??????????????# % ??????????????????? | | ??????????????# "" % ????????????????? | | ??????????????# "" % """ #???????????????? | | ??????????????# "" """ #???????????????? | | ??????????????# """ % """ / ??????????????? | | ?????????????? """ # ?????????????? | | ?????????????? ??? #? ????????????? | | ?????????????? ? ""????????????????????? | | ???????????????##?## ""????????????????????? | +----------------------------------------------------+ Best States ------------- Heat Dissipation 35 Energy Generation 10 Energy Capacity 250 Matter Stores 300 Matter Capacity 300 Sight Range 16 Terrain Scan Density 10 Armor Coverage 900 Evasion (%) 55 Recoil Reduction 2 Item Schematics ----------------- None Robot Schematics ------------------ None Fabricated ------------ Nothing Repaired ---------- Nothing Alien Tech Used ----------------- None Achievements -------------- Everything Is Under Control Challenges ------------ None Game ------ Seed ResetMappingScrapsphere Manual? 0 Play Time 00:15:03 Cumulative 4.4 hours Start 2025.10.11 @ 06:32:43 End 2025.10.11 @ 06:43:35 Sessions 1 Manual Loads 0 Difficulty Rogue Special Mode None Game No. 5 Rogue 5 Adventurer 0 Explorer 0 Win Type - Total 0 Types 0/0/0/0/0/0/0/0/0/0 Lore% 1 Gallery% 6 Achievement% 7 Wizard Run 0 Options --------- Layout 1 ASCII 0 Keyboard 1 Movement Arrows Keybinds 0 Fullscreen 1 Font 32/SmallcapsGlow Map View 130x35 Zoom Use 0% Tactical HUD 1 Map Filters NONE Filters NONE Steam 1 RUN: 46beb803-e416-47e8-966f-2f54666a89f5